[Event "*** Titled Tuesday Blitz"]
[Site "Chess.com"]
[Date "2021.02.16"]
[Round "2"]
[White "joppie2"]
[Black "aa175"]
[Result "0-1"]
[WhiteElo "2976"]
[BlackElo "2606"]
[TimeControl "180+1"]
[EndTime "10:20:18 PST"]
[Termination "aa175 won on time"]

1. Nf3 {[%clk 0:03:00.5]} 1... Nf6 {[%clk 0:02:59.6]} 2. b3 {[%clk 0:03:01]}
2... d5 {[%clk 0:02:59.2]} 3. Bb2 {[%clk 0:03:01.9]} 3... Bf5 {[%clk 0:02:59.8]}
4. Nh4 {[%clk 0:03:01.1]} 4... Bg6 {[%clk 0:02:54.8]} 5. g3 {[%clk 0:02:57.9]}
5... e6 {[%clk 0:02:54.8]} 6. Bg2 {[%clk 0:02:57.7]} 6... Be7 {[%clk 0:02:52.3]}
7. d3 {[%clk 0:02:57.2]} 7... Bh5 {[%clk 0:02:46.1]} 8. h3 {[%clk 0:02:55.9]}
8... O-O {[%clk 0:02:41.7]} 9. Nd2 {[%clk 0:02:55.2]} 9... c5 {[%clk 0:02:39.7]}
10. g4 {[%clk 0:02:49.4]} 10... Ne8 {[%clk 0:02:40.1]} 11. Nhf3 {[%clk
0:02:48.5]} 11... Bg6 {[%clk 0:02:40.3]} 12. h4 {[%clk 0:02:45.6]} 12... h6
{[%clk 0:02:31.9]} 13. e3 {[%clk 0:02:45]} 13... Nc6 {[%clk 0:02:28.6]} 14. Qe2
{[%clk 0:02:40.5]} 14... Bf6 {[%clk 0:02:18.7]} 15. Bxf6 {[%clk 0:02:31.6]}
15... Qxf6 {[%clk 0:02:19.6]} 16. O-O {[%clk 0:02:11.1]} 16... Nb4 {[%clk
0:01:56]} 17. a3 {[%clk 0:01:59.9]} 17... Nxc2 {[%clk 0:01:45.5]} 18. Ra2 {[%clk
0:01:57.6]} 18... Qc3 {[%clk 0:01:40.2]} 19. Rc1 {[%clk 0:01:46.4]} 19... Nd4
{[%clk 0:01:35.9]} 20. exd4 {[%clk 0:01:32.8]} 20... Qxc1+ {[%clk 0:01:35.8]}
21. Kh2 {[%clk 0:01:29.5]} 21... cxd4 {[%clk 0:01:34.1]} 22. Ne5 {[%clk
0:01:22]} 22... Qc7 {[%clk 0:01:26.5]} 23. Kg1 {[%clk 0:01:09.7]} 23... Nf6
{[%clk 0:00:59.4]} 24. Ndf3 {[%clk 0:01:09.1]} 24... Qc1+ {[%clk 0:00:55.2]} 25.
Bf1 {[%clk 0:01:07.2]} 25... Qf4 {[%clk 0:00:52.1]} 26. g5 {[%clk 0:00:59.3]}
26... hxg5 {[%clk 0:00:47.8]} 27. hxg5 {[%clk 0:00:52.2]} 27... Ng4 {[%clk
0:00:46.8]} 28. Nxg6 {[%clk 0:00:47.7]} 28... fxg6 {[%clk 0:00:47.2]} 29. Qxe6+
{[%clk 0:00:32.5]} 29... Kh7 {[%clk 0:00:28.7]} 30. Be2 {[%clk 0:00:25.7]} 30...
Rae8 {[%clk 0:00:26.5]} 31. Qxd5 {[%clk 0:00:21.3]} 31... Rxe2 {[%clk
0:00:21.6]} 32. Rxe2 {[%clk 0:00:22.2]} 32... Qxf3 {[%clk 0:00:21.8]} 33. Qe4
{[%clk 0:00:10.2]} 33... Qxe4 {[%clk 0:00:13.8]} 34. Rxe4 {[%clk 0:00:11.1]}
34... Nxf2 {[%clk 0:00:12.5]} 35. Rxd4 {[%clk 0:00:11.7]} 35... Nh3+ {[%clk
0:00:11.8]} 36. Kg2 {[%clk 0:00:12.2]} 36... Nxg5 {[%clk 0:00:12.2]} 37. Rd5
{[%clk 0:00:12]} 37... Ne6 {[%clk 0:00:11.2]} 38. Rd7 {[%clk 0:00:11.4]} 38...
Nc5 {[%clk 0:00:11.6]} 39. Rc7 {[%clk 0:00:11.8]} 39... b6 {[%clk 0:00:09.2]}
40. b4 {[%clk 0:00:07.6]} 40... Nxd3 {[%clk 0:00:08.7]} 41. Rxa7 {[%clk
0:00:08.1]} 41... Rf6 {[%clk 0:00:08.5]} 42. Kg3 {[%clk 0:00:05.6]} 42... g5
{[%clk 0:00:08.2]} 43. Rd7 {[%clk 0:00:06.1]} 43... Ne5 {[%clk 0:00:07.7]} 44.
Rd5 {[%clk 0:00:06.6]} 44... Rf3+ {[%clk 0:00:06.4]} 45. Kg2 {[%clk 0:00:06.2]}
45... Rf5 {[%clk 0:00:06.1]} 46. Rb5 {[%clk 0:00:05.2]} 46... Kg6 {[%clk
0:00:04.7]} 47. Rxb6+ {[%clk 0:00:05.3]} 47... Kh5 {[%clk 0:00:05.2]} 48. a4
{[%clk 0:00:04.3]} 48... Kg4 {[%clk 0:00:05.5]} 49. a5 {[%clk 0:00:03.6]} 49...
Nc4 {[%clk 0:00:05.3]} 50. Re6 {[%clk 0:00:03]} 50... Re5 {[%clk 0:00:04.5]} 51.
Rxe5 {[%clk 0:00:02.6]} 51... Nxe5 {[%clk 0:00:05.4]} 52. b5 {[%clk 0:00:03.3]}
52... Nc4 {[%clk 0:00:04.8]} 53. a6 {[%clk 0:00:02.1]} 53... Nb6 {[%clk
0:00:05.2]} 54. Kf2 {[%clk 0:00:02.2]} 54... Kf4 {[%clk 0:00:05.9]} 55. a7
{[%clk 0:00:03.1]} 55... g4 {[%clk 0:00:06.8]} 56. Kg2 {[%clk 0:00:03.3]} 56...
g3 {[%clk 0:00:07.2]} 57. Kh3 {[%clk 0:00:03.8]} 57... g5 {[%clk 0:00:07.4]} 58.
Kg2 {[%clk 0:00:04]} 58... g4 {[%clk 0:00:07.6]} 59. Kg1 {[%clk 0:00:03.7]}
59... Kf3 {[%clk 0:00:07.8]} 60. Kf1 {[%clk 0:00:03.8]} 60... g2+ {[%clk
0:00:07.8]} 61. Kg1 {[%clk 0:00:04.1]} 61... Na8 {[%clk 0:00:07.5]} 0-1

[Event "*** Titled Tuesday Blitz"]
[Site "Chess.com"]
[Date "2021.02.16"]
[Round "2"]
[White "andrewtnb"]
[Black "ketster"]
[Result "1-0"]
[WhiteElo "2305"]
[BlackElo "2457"]
[TimeControl "180+1"]
[EndTime "10:20:18 PST"]
[Termination "andrewtnb won on time"]

1. d4 {[%clk 0:03:00.9]} 1... Nf6 {[%clk 0:02:59.3]} 2. Nf3 {[%clk 0:03:00.6]}
2... d5 {[%clk 0:02:59.1]} 3. c4 {[%clk 0:03:00.7]} 3... e6 {[%clk 0:02:58.8]}
4. Nc3 {[%clk 0:02:59.3]} 4... dxc4 {[%clk 0:02:58.9]} 5. e3 {[%clk 0:02:57.2]}
5... a6 {[%clk 0:02:58.7]} 6. Bxc4 {[%clk 0:02:54.4]} 6... b5 {[%clk 0:02:58.4]}
7. Be2 {[%clk 0:02:54.6]} 7... Bb7 {[%clk 0:02:57.1]} 8. O-O {[%clk 0:02:53.8]}
8... Nbd7 {[%clk 0:02:57.4]} 9. a4 {[%clk 0:02:51.7]} 9... b4 {[%clk 0:02:56]}
10. Nb1 {[%clk 0:02:52.2]} 10... c5 {[%clk 0:02:56.3]} 11. Nbd2 {[%clk 0:02:52]}
11... Be7 {[%clk 0:02:48.7]} 12. Nc4 {[%clk 0:02:50.1]} 12... O-O {[%clk
0:02:48.5]} 13. Nfe5 {[%clk 0:02:44.8]} 13... Nxe5 {[%clk 0:02:31.1]} 14. dxe5
{[%clk 0:02:43.8]} 14... Nd5 {[%clk 0:02:27.7]} 15. a5 {[%clk 0:02:43.5]} 15...
Qc7 {[%clk 0:02:23.1]} 16. e4 {[%clk 0:02:41.9]} 16... Rad8 {[%clk 0:02:13.9]}
17. exd5 {[%clk 0:02:37.6]} 17... exd5 {[%clk 0:02:10.3]} 18. Nd6 {[%clk
0:02:10.3]} 18... Bxd6 {[%clk 0:02:04.5]} 19. exd6 {[%clk 0:02:11.2]} 19... Qxd6
{[%clk 0:02:05.1]} 20. Bf3 {[%clk 0:02:07.1]} 20... Qc7 {[%clk 0:01:53]} 21. Bg5
{[%clk 0:02:06.3]} 21... f6 {[%clk 0:01:43.7]} 22. Bh4 {[%clk 0:02:03.8]} 22...
Qe5 {[%clk 0:01:26.4]} 23. Qc2 {[%clk 0:01:59.1]} 23... c4 {[%clk 0:01:19.2]}
24. Rfe1 {[%clk 0:01:47.2]} 24... Qc7 {[%clk 0:01:03.9]} 25. Bg3 {[%clk
0:01:47.5]} 25... Qc5 {[%clk 0:01:03.7]} 26. Re6 {[%clk 0:01:37.2]} 26... Bc8
{[%clk 0:01:00.2]} 27. Rb6 {[%clk 0:01:31.6]} 27... Rfe8 {[%clk 0:00:51.9]} 28.
Qa4 {[%clk 0:01:29.4]} 28... b3 {[%clk 0:00:42]} 29. Rc1 {[%clk 0:01:20.7]}
29... Qd4 {[%clk 0:00:39.6]} 30. Qc6 {[%clk 0:01:04.1]} 30... Qd2 {[%clk
0:00:29]} 31. Rf1 {[%clk 0:00:47.9]} 31... Bf5 {[%clk 0:00:20.7]} 32. h3 {[%clk
0:00:44.5]} 32... Be4 {[%clk 0:00:16]} 33. Bxe4 {[%clk 0:00:41]} 33... Rxe4
{[%clk 0:00:16.1]} 34. Rxa6 {[%clk 0:00:35.2]} 34... Qxb2 {[%clk 0:00:13.2]} 35.
Ra8 {[%clk 0:00:35]} 35... Ree8 {[%clk 0:00:09.8]} 36. Rxd8 {[%clk 0:00:30.1]}
36... Rxd8 {[%clk 0:00:10.7]} 37. Bc7 {[%clk 0:00:29]} 37... Rc8 {[%clk
0:00:09.7]} 38. Qxd5+ {[%clk 0:00:28.3]} 38... Kh8 {[%clk 0:00:09.7]} 39. Qxc4
{[%clk 0:00:27.8]} 39... Qa2 {[%clk 0:00:05.2]} 40. a6 {[%clk 0:00:26.1]} 40...
Qa3 {[%clk 0:00:04.3]} 41. Rb1 {[%clk 0:00:24.1]} 41... b2 {[%clk 0:00:03.4]}
42. Qe6 {[%clk 0:00:22.7]} 42... Rf8 {[%clk 0:00:01.9]} 43. Bf4 {[%clk
0:00:19.2]} 43... Qa1 {[%clk 0:00:02.1]} 44. Qe1 {[%clk 0:00:18.1]} 44... Qxa6
{[%clk 0:00:02.4]} 45. Rxb2 {[%clk 0:00:17.7]} 45... h6 {[%clk 0:00:03]} 46. Re2
{[%clk 0:00:17.6]} 46... Qd3 {[%clk 0:00:03.2]} 47. Bg3 {[%clk 0:00:17.9]} 47...
Kh7 {[%clk 0:00:02.4]} 48. Re3 {[%clk 0:00:18.3]} 48... Qg6 {[%clk 0:00:02]} 49.
Qe2 {[%clk 0:00:18.6]} 49... f5 {[%clk 0:00:02.5]} 50. Bf4 {[%clk 0:00:17.1]}
50... Qf6 {[%clk 0:00:02.4]} 51. Kh2 {[%clk 0:00:17]} 51... Rf7 {[%clk
0:00:02.6]} 52. Be5 {[%clk 0:00:17]} 52... Qg6 {[%clk 0:00:02.8]} 53. Bf4 {[%clk
0:00:17]} 53... Qf6 {[%clk 0:00:03.1]} 54. Re6 {[%clk 0:00:15.2]} 54... Qd4
{[%clk 0:00:03.1]} 55. Qe5 {[%clk 0:00:15.3]} 55... Qd3 {[%clk 0:00:02.9]} 56.
Qe3 {[%clk 0:00:14.4]} 56... Qc4 {[%clk 0:00:02.7]} 57. Re8 {[%clk 0:00:11.2]}
57... Qd5 {[%clk 0:00:02.8]} 58. h4 {[%clk 0:00:10.1]} 58... Qc4 {[%clk
0:00:03.1]} 59. h5 {[%clk 0:00:08.8]} 59... Qd5 {[%clk 0:00:03.5]} 60. Rb8
{[%clk 0:00:08.3]} 60... Qc6 {[%clk 0:00:03.2]} 61. Qe8 {[%clk 0:00:05.2]} 1-0

[Event "*** Titled Tuesday Blitz"]
[Site "Chess.com"]
[Date "2021.02.16"]
[Round "2"]
[White "ajedrez1101"]
[Black "Logman74"]
[Result "1-0"]
[WhiteElo "2112"]
[BlackElo "2380"]
[TimeControl "180+1"]
[EndTime "10:20:20 PST"]
[Termination "ajedrez1101 won on time"]

1. d4 {[%clk 0:03:00.9]} 1... Nf6 {[%clk 0:02:58.5]} 2. Bf4 {[%clk 0:02:59.6]}
2... d6 {[%clk 0:02:57.8]} 3. Nc3 {[%clk 0:02:53.5]} 3... g6 {[%clk 0:02:57.7]}
4. e4 {[%clk 0:02:53.8]} 4... Bg7 {[%clk 0:02:58]} 5. Qd2 {[%clk 0:02:53.9]}
5... O-O {[%clk 0:02:58.3]} 6. O-O-O {[%clk 0:02:53.8]} 6... c6 {[%clk 0:02:56]}
7. Bh6 {[%clk 0:02:40.5]} 7... b5 {[%clk 0:02:54.3]} 8. f3 {[%clk 0:02:38.2]}
8... Nbd7 {[%clk 0:02:47.6]} 9. h4 {[%clk 0:02:37.4]} 9... Nb6 {[%clk
0:02:47.1]} 10. h5 {[%clk 0:01:53.3]} 10... b4 {[%clk 0:02:26.7]} 11. Nb1 {[%clk
0:01:51.9]} 11... Be6 {[%clk 0:02:19.1]} 12. g4 {[%clk 0:01:33.5]} 12... Bh8
{[%clk 0:01:35.5]} 13. Bxf8 {[%clk 0:01:18.3]} 13... Qxf8 {[%clk 0:01:35]} 14.
hxg6 {[%clk 0:01:18.1]} 14... fxg6 {[%clk 0:01:34.3]} 15. Qxb4 {[%clk
0:00:48.8]} 15... Rb8 {[%clk 0:01:31.9]} 16. Qa5 {[%clk 0:00:39]} 16... Bc4
{[%clk 0:01:19.4]} 17. b3 {[%clk 0:00:30.4]} 17... Bxf1 {[%clk 0:01:18.5]} 18.
Rxf1 {[%clk 0:00:31]} 18... Nxe4 {[%clk 0:01:16.3]} 19. Nh3 {[%clk 0:00:21.6]}
19... Ng3 {[%clk 0:01:04.1]} 20. Qd2 {[%clk 0:00:17.2]} 20... Nxf1 {[%clk
0:01:00]} 21. Rxf1 {[%clk 0:00:17.4]} 21... Nd5 {[%clk 0:00:56.8]} 22. c4 {[%clk
0:00:15.4]} 22... Nb4 {[%clk 0:00:55.2]} 23. Nc3 {[%clk 0:00:11.8]} 23... c5
{[%clk 0:00:46.7]} 24. Ne2 {[%clk 0:00:11.1]} 24... cxd4 {[%clk 0:00:44]} 25.
Nxd4 {[%clk 0:00:07.6]} 25... Qf6 {[%clk 0:00:43.7]} 26. Rd1 {[%clk 0:00:08.1]}
26... a5 {[%clk 0:00:38.8]} 27. Kb1 {[%clk 0:00:07.3]} 27... a4 {[%clk
0:00:33.8]} 28. Ng5 {[%clk 0:00:07.4]} 28... axb3 {[%clk 0:00:29.2]} 29. axb3
{[%clk 0:00:07.4]} 29... Nc6 {[%clk 0:00:28.7]} 30. Nge6 {[%clk 0:00:07.2]}
30... Nxd4 {[%clk 0:00:24.9]} 31. Nxd4 {[%clk 0:00:08.1]} 31... e5 {[%clk
0:00:24.9]} 32. Nb5 {[%clk 0:00:06.6]} 32... Bg7 {[%clk 0:00:20.3]} 33. Qd5+
{[%clk 0:00:06.6]} 33... Kh8 {[%clk 0:00:20]} 34. Qxd6 {[%clk 0:00:07.4]} 34...
Qxd6 {[%clk 0:00:18.1]} 35. Rxd6 {[%clk 0:00:08.3]} 35... h5 {[%clk 0:00:17.1]}
36. gxh5 {[%clk 0:00:07.6]} 36... gxh5 {[%clk 0:00:17]} 37. Rd1 {[%clk
0:00:07.5]} 37... h4 {[%clk 0:00:16.9]} 38. Rh1 {[%clk 0:00:07.2]} 38... Bf6
{[%clk 0:00:17.3]} 39. Nd6 {[%clk 0:00:07.3]} 39... Rxb3+ {[%clk 0:00:14.3]} 40.
Kc2 {[%clk 0:00:06.9]} 40... Rxf3 {[%clk 0:00:14.8]} 41. Ne4 {[%clk 0:00:07.5]}
41... Be7 {[%clk 0:00:14.1]} 42. c5 {[%clk 0:00:07.5]} 42... h3 {[%clk
0:00:14.2]} 43. c6 {[%clk 0:00:06.3]} 43... Bd8 {[%clk 0:00:08.9]} 44. Ng5
{[%clk 0:00:03.5]} 44... Rf2+ {[%clk 0:00:07.3]} 45. Kd3 {[%clk 0:00:03.2]}
45... Rf8 {[%clk 0:00:03.8]} 46. Ne4 {[%clk 0:00:02.4]} 46... Rf3+ {[%clk
0:00:02.4]} 47. Kc4 {[%clk 0:00:02.6]} 47... Bc7 {[%clk 0:00:01.8]} 48. Kd5
{[%clk 0:00:03]} 48... Kh7 {[%clk 0:00:02.1]} 49. Ng5+ {[%clk 0:00:03.3]} 49...
Kg6 {[%clk 0:00:02.2]} 50. Nxf3 {[%clk 0:00:04.2]} 50... Kf5 {[%clk 0:00:01.8]}
51. Nxe5 {[%clk 0:00:05]} 51... Bxe5 {[%clk 0:00:01.5]} 52. Rxh3 {[%clk
0:00:05.9]} 52... Bf4 {[%clk 0:00:01.6]} 53. Rc3 {[%clk 0:00:05.7]} 53... Kg4
{[%clk 0:00:02.3]} 54. c7 {[%clk 0:00:05.6]} 54... Bxc7 {[%clk 0:00:03.2]} 55.
Rxc7 {[%clk 0:00:05.3]} 55... Kf5 {[%clk 0:00:04.1]} 56. Rf7+ {[%clk 0:00:05.3]}
56... Kg6 {[%clk 0:00:03.1]} 57. Ke6 {[%clk 0:00:05.7]} 57... Kh6 {[%clk
0:00:02.8]} 58. Kf6 {[%clk 0:00:05.6]} 58... Kh5 {[%clk 0:00:02.6]} 59. Rg7
{[%clk 0:00:06.1]} 1-0

[Event "*** Titled Tuesday Blitz"]
[Site "Chess.com"]
[Date "2021.02.16"]
[Round "2"]
[White "PowerThinking2650"]
[Black "JuliaEfremova"]
[Result "1/2-1/2"]
[WhiteElo "2429"]
[BlackElo "2214"]
[TimeControl "180+1"]
[EndTime "10:20:24 PST"]
[Termination "Game drawn by agreement"]

1. e4 {[%clk 0:03:00.9]} 1... d5 {[%clk 0:02:58.9]} 2. exd5 {[%clk 0:03:01.8]}
2... Qxd5 {[%clk 0:02:59.5]} 3. Nc3 {[%clk 0:03:00.4]} 3... Qa5 {[%clk
0:02:57.6]} 4. d4 {[%clk 0:03:00.8]} 4... Nf6 {[%clk 0:02:56.3]} 5. Nf3 {[%clk
0:03:00.8]} 5... Bg4 {[%clk 0:02:55.9]} 6. Bc4 {[%clk 0:02:56.6]} 6... Nc6
{[%clk 0:02:55.9]} 7. h3 {[%clk 0:02:55.1]} 7... Qh5 {[%clk 0:02:53.7]} 8. Be2
{[%clk 0:02:16.8]} 8... O-O-O {[%clk 0:02:52.2]} 9. Bf4 {[%clk 0:01:48.3]} 9...
e5 {[%clk 0:02:15.9]} 10. Nxe5 {[%clk 0:01:33.4]} 10... Bxe2 {[%clk 0:02:08.1]}
11. Nxe2 {[%clk 0:01:09.8]} 11... Nxe5 {[%clk 0:02:02.5]} 12. Bxe5 {[%clk
0:01:10.7]} 12... Bd6 {[%clk 0:02:02.6]} 13. Bxd6 {[%clk 0:01:00]} 13... Rxd6
{[%clk 0:02:00.8]} 14. O-O {[%clk 0:00:59.6]} 14... Rhd8 {[%clk 0:01:56.6]} 15.
c3 {[%clk 0:00:55.2]} 15... g5 {[%clk 0:01:51.4]} 16. Ng3 {[%clk 0:00:53.3]}
16... Qxd1 {[%clk 0:01:45.8]} 17. Raxd1 {[%clk 0:00:52.8]} 17... h5 {[%clk
0:01:45.4]} 18. Rfe1 {[%clk 0:00:51.9]} 18... h4 {[%clk 0:01:41.3]} 19. Nf5
{[%clk 0:00:50.2]} 19... R6d7 {[%clk 0:01:41.2]} 20. Re5 {[%clk 0:00:43.8]}
20... Nh7 {[%clk 0:01:28.3]} 21. Rde1 {[%clk 0:00:42.8]} 21... b6 {[%clk
0:01:23.4]} 22. Re7 {[%clk 0:00:36]} 22... f6 {[%clk 0:01:01.2]} 23. f3 {[%clk
0:00:28.6]} 23... Nf8 {[%clk 0:00:54.4]} 24. Rxd7 {[%clk 0:00:25.9]} 24... Nxd7
{[%clk 0:00:54.2]} 25. Re7 {[%clk 0:00:24.2]} 25... Kb7 {[%clk 0:00:51.2]} 26.
Kf2 {[%clk 0:00:23.3]} 26... Kc6 {[%clk 0:00:50.7]} 27. c4 {[%clk 0:00:22.7]}
27... b5 {[%clk 0:00:48]} 28. Re6+ {[%clk 0:00:20.6]} 28... Kb7 {[%clk
0:00:44.7]} 29. cxb5 {[%clk 0:00:21]} 29... Nb6 {[%clk 0:00:37.6]} 30. Rxf6
{[%clk 0:00:20.7]} 30... Nc4 {[%clk 0:00:37.3]} 31. b3 {[%clk 0:00:20.4]} 31...
Na3 {[%clk 0:00:34.1]} 32. Rg6 {[%clk 0:00:17.7]} 32... Nxb5 {[%clk 0:00:33.3]}
33. Rxg5 {[%clk 0:00:18.1]} 33... Nc3 {[%clk 0:00:33.7]} 34. Nxh4 {[%clk
0:00:13.9]} 34... Nxa2 {[%clk 0:00:33.5]} 35. Nf5 {[%clk 0:00:13.9]} 35... Nc1
{[%clk 0:00:32.6]} 36. h4 {[%clk 0:00:13.7]} 36... Nxb3 {[%clk 0:00:32.4]} 37.
h5 {[%clk 0:00:13.7]} 37... a5 {[%clk 0:00:27.1]} 38. h6 {[%clk 0:00:12.2]}
38... a4 {[%clk 0:00:25.7]} 39. h7 {[%clk 0:00:08.6]} 39... Rh8 {[%clk
0:00:25.6]} 40. Rh5 {[%clk 0:00:08.2]} 40... a3 {[%clk 0:00:25.8]} 41. Ne3
{[%clk 0:00:07.4]} 41... Nxd4 {[%clk 0:00:24.3]} 42. Rh1 {[%clk 0:00:04.4]}
42... Ka6 {[%clk 0:00:20.9]} 43. Ra1 {[%clk 0:00:04.1]} 43... Nb5 {[%clk
0:00:19.6]} 44. Nc4 {[%clk 0:00:03.2]} 44... Rxh7 {[%clk 0:00:19.7]} 45. Nxa3
{[%clk 0:00:03.5]} 45... Nxa3 {[%clk 0:00:20.1]} 46. Rxa3+ {[%clk 0:00:04.3]}
46... Kb5 {[%clk 0:00:21]} 47. Rb3+ {[%clk 0:00:04.5]} 47... Kc4 {[%clk
0:00:21]} 48. Rb7 {[%clk 0:00:04.6]} 48... Kd5 {[%clk 0:00:20.1]} 49. g4 {[%clk
0:00:05]} 49... Kc6 {[%clk 0:00:20.3]} 50. Rb8 {[%clk 0:00:04.7]} 50... Kd5
{[%clk 0:00:19.4]} 51. Kg3 {[%clk 0:00:05.2]} 51... c5 {[%clk 0:00:19.7]} 52. f4
{[%clk 0:00:05.5]} 52... Rc7 {[%clk 0:00:20]} 53. Rd8+ {[%clk 0:00:05.1]} 53...
Ke6 {[%clk 0:00:19.7]} 54. Rd1 {[%clk 0:00:04.8]} 54... c4 {[%clk 0:00:19.7]}
55. f5+ {[%clk 0:00:04.9]} 55... Ke5 {[%clk 0:00:18.4]} 56. Re1+ {[%clk
0:00:04.8]} 56... Kf6 {[%clk 0:00:17.6]} 57. Kf4 {[%clk 0:00:05.4]} 57... c3
{[%clk 0:00:18.5]} 58. g5+ {[%clk 0:00:06]} 58... Kf7 {[%clk 0:00:18.8]} 59. Rc1
{[%clk 0:00:05.6]} 59... Rc5 {[%clk 0:00:17.3]} 60. Ke4 {[%clk 0:00:05]} 60...
Ke7 {[%clk 0:00:17.3]} 61. Rc2 {[%clk 0:00:05.2]} 61... Kf7 {[%clk 0:00:17.1]}
62. g6+ {[%clk 0:00:04.6]} 62... Kf6 {[%clk 0:00:17.2]} 63. Kd4 {[%clk
0:00:04.3]} 63... Rxf5 {[%clk 0:00:16.6]} 64. Rxc3 {[%clk 0:00:04.8]} 64... Rf4+
{[%clk 0:00:16.5]} 65. Ke3 {[%clk 0:00:04.7]} 1/2-1/2

[Event "*** Titled Tuesday Blitz"]
[Site "Chess.com"]
[Date "2021.02.16"]
[Round "2"]
[White "JiiHart"]
[Black "BursaBBSatranc"]
[Result "0-1"]
[WhiteElo "2110"]
[BlackElo "2605"]
[TimeControl "180+1"]
[EndTime "10:20:28 PST"]
[Termination "BursaBBSatranc won on time"]

1. e4 {[%clk 0:03:00.9]} 1... e5 {[%clk 0:02:58.6]} 2. Nf3 {[%clk 0:03:00.7]}
2... Nf6 {[%clk 0:02:58.9]} 3. d4 {[%clk 0:02:59.9]} 3... Nxe4 {[%clk
0:02:58.6]} 4. Nxe5 {[%clk 0:02:59.4]} 4... d5 {[%clk 0:02:58]} 5. Bd3 {[%clk
0:02:59.2]} 5... Nd7 {[%clk 0:02:56.5]} 6. O-O {[%clk 0:02:47.9]} 6... Nxe5
{[%clk 0:02:53.4]} 7. dxe5 {[%clk 0:02:45.1]} 7... Nc5 {[%clk 0:02:49]} 8. f4
{[%clk 0:02:08.8]} 8... Nxd3 {[%clk 0:02:05.3]} 9. cxd3 {[%clk 0:02:01.4]} 9...
h5 {[%clk 0:01:39.1]} 10. f5 {[%clk 0:01:56]} 10... g6 {[%clk 0:01:17.5]} 11. e6
{[%clk 0:01:02.4]} 11... gxf5 {[%clk 0:01:04.3]} 12. exf7+ {[%clk 0:00:59.6]}
12... Kxf7 {[%clk 0:01:04.4]} 13. Nc3 {[%clk 0:00:38.5]} 13... Bd6 {[%clk
0:01:02.7]} 14. Qf3 {[%clk 0:00:33.2]} 14... c6 {[%clk 0:00:58.7]} 15. Ne2
{[%clk 0:00:30.5]} 15... Qh4 {[%clk 0:00:53.5]} 16. g3 {[%clk 0:00:26.4]} 16...
Qg4 {[%clk 0:00:51.2]} 17. Qxg4 {[%clk 0:00:16.1]} 17... hxg4 {[%clk 0:00:50.9]}
18. Bf4 {[%clk 0:00:13.2]} 18... Bc5+ {[%clk 0:00:47.3]} 19. d4 {[%clk 0:00:13]}
19... Be7 {[%clk 0:00:46.2]} 20. Be5 {[%clk 0:00:13.1]} 20... Re8 {[%clk
0:00:40.7]} 21. Nf4 {[%clk 0:00:13.3]} 21... Bg5 {[%clk 0:00:33.8]} 22. Rae1
{[%clk 0:00:12.5]} 22... Bd7 {[%clk 0:00:33.9]} 23. h4 {[%clk 0:00:11.2]} 23...
Bxf4 {[%clk 0:00:20.4]} 24. Bxf4 {[%clk 0:00:10.3]} 24... Re4 {[%clk 0:00:19.5]}
25. Rxe4 {[%clk 0:00:09.9]} 25... dxe4 {[%clk 0:00:20.4]} 26. Kf2 {[%clk
0:00:08.6]} 26... Be6 {[%clk 0:00:20.3]} 27. b3 {[%clk 0:00:07.3]} 27... Rd8
{[%clk 0:00:20.7]} 28. Be5 {[%clk 0:00:07]} 28... c5 {[%clk 0:00:20.4]} 29. Ke3
{[%clk 0:00:07.1]} 29... cxd4+ {[%clk 0:00:20.2]} 30. Bxd4 {[%clk 0:00:08]}
30... Kg6 {[%clk 0:00:19.8]} 31. Rc1 {[%clk 0:00:07.6]} 31... Rd7 {[%clk
0:00:18.5]} 32. Rc5 {[%clk 0:00:06]} 32... Bd5 {[%clk 0:00:18.4]} 33. Rc8 {[%clk
0:00:04.7]} 33... Be6 {[%clk 0:00:16.8]} 34. Rh8 {[%clk 0:00:03.8]} 34... Rc7
{[%clk 0:00:15.4]} 35. h5+ {[%clk 0:00:04.1]} 35... Kg5 {[%clk 0:00:14.6]} 36.
h6 {[%clk 0:00:02.3]} 36... Rc1 {[%clk 0:00:14.1]} 37. h7 {[%clk 0:00:02.2]}
37... Kg6 {[%clk 0:00:10.1]} 38. Rg8+ {[%clk 0:00:02.1]} 38... Kxh7 {[%clk
0:00:10.2]} 39. Rg7+ {[%clk 0:00:02.7]} 39... Kh6 {[%clk 0:00:10.3]} 40. Re7
{[%clk 0:00:03.2]} 40... Bg8 {[%clk 0:00:10]} 41. Be5 {[%clk 0:00:03.5]} 41...
Re1+ {[%clk 0:00:09]} 42. Kd4 {[%clk 0:00:02.1]} 42... Rd1+ {[%clk 0:00:09.3]}
43. Kc3 {[%clk 0:00:02.4]} 43... Rd3+ {[%clk 0:00:09.6]} 44. Kc2 {[%clk
0:00:02.4]} 44... Rf3 {[%clk 0:00:09.4]} 45. Bf4+ {[%clk 0:00:03]} 45... Rxf4
{[%clk 0:00:07.8]} 46. gxf4 {[%clk 0:00:03]} 46... g3 {[%clk 0:00:08.7]} 47. Rd7
{[%clk 0:00:02.6]} 47... Kh5 {[%clk 0:00:07.4]} 48. Rd1 {[%clk 0:00:02.9]} 48...
Kg4 {[%clk 0:00:07.4]} 49. Rf1 {[%clk 0:00:02.7]} 49... g2 {[%clk 0:00:07.1]}
50. Rg1 {[%clk 0:00:02.7]} 50... Kf3 {[%clk 0:00:07.7]} 51. Kd2 {[%clk
0:00:02.8]} 51... Kf2 {[%clk 0:00:08.1]} 52. Rxg2+ {[%clk 0:00:02.8]} 52... Kxg2
{[%clk 0:00:09]} 53. Ke3 {[%clk 0:00:03.3]} 53... Bh7 {[%clk 0:00:09.5]} 54. b4
{[%clk 0:00:03.2]} 54... Bg6 {[%clk 0:00:10.4]} 55. a4 {[%clk 0:00:03.4]} 55...
a6 {[%clk 0:00:10.8]} 56. Kd4 {[%clk 0:00:03.6]} 56... Kf3 {[%clk 0:00:10.2]}
57. Ke5 {[%clk 0:00:03.8]} 57... e3 {[%clk 0:00:11.1]} 58. b5 {[%clk 0:00:03.6]}
58... e2 {[%clk 0:00:12]} 59. Kf6 {[%clk 0:00:02.5]} 59... e1=Q {[%clk
0:00:11.6]} 60. Kxg6 {[%clk 0:00:03.1]} 60... axb5 {[%clk 0:00:12.1]} 61. Kxf5
{[%clk 0:00:03.4]} 61... Qe4+ {[%clk 0:00:12]} 62. Kg5 {[%clk 0:00:04]} 62...
bxa4 {[%clk 0:00:12.8]} 63. f5 {[%clk 0:00:03.5]} 63... a3 {[%clk 0:00:13.3]}
64. f6 {[%clk 0:00:03.7]} 64... a2 {[%clk 0:00:14.2]} 65. f7 {[%clk 0:00:04]}
65... Qf4+ {[%clk 0:00:13.8]} 66. Kg6 {[%clk 0:00:03]} 66... a1=Q {[%clk
0:00:14.2]} 67. f8=Q {[%clk 0:00:02.9]} 67... Qxf8 {[%clk 0:00:12.8]} 0-1